{"text_format":"3","workbook":"xlsx","n_sheets":2,"sheets":["Controlador de projetos","Configuração"],"not_rendered":{"defined_names":6},"read":"whole","date_system":"1900"}

{"sheet":"Controlador de projetos","index":0,"n_rows":13,"n_cols":15,"rows_kept":13}
[null,"Controlador de projetos"]
[null,null,"Sinalizador de Porcentagem Acima/Abaixo: ",{"v":0.25,"d":"25%"}]
[]
[null,"Projeto","Categoria","Atribuída a","Estimado\nInício","Estimado \nTérmino","Trabalho Estimado (em horas)","Duração Estimada (em dias)","Real \nInício","Real\nTérmino","Ícone de sinalizador para o trabalho real de acima/abaixo (em horas)","Trabalho Real (em horas)","Ícone de sinalizador para duração real acima/abaixo (em dias)","Duração Real (em dias)","Anotações"]
[null,"Projeto 1","Categoria 1","Funcionário 1",{"$f":"TODAY()-65","v":"2023-02-15"},{"$f":"TODAY()-5","v":"2023-04-16"},210,{"$f":"IF(COUNTA('Controlador de projetos'!$E5,'Controlador de projetos'!$F5)<>2,\"\",DAYS360('Controlador de projetos'!$E5,'Controlador de projetos'!$F5,FALSE))","v":61},{"$f":"TODAY()-65","v":"2023-02-15"},{"$f":"TODAY()","v":"2023-04-21"},{"$f":"IFERROR(IF(ControladorDeProjetos[[#This Row],[Trabalho Real (em horas)]]=0,\"\",IF(ABS((ControladorDeProjetos[[#This Row],[Trabalho Real (em horas)]]-ControladorDeProjetos[[#This Row],[Trabalho Estimado (em horas)]])/ControladorDeProjetos[[#This Row],[Trabalho Estimado (em horas)]])>Sinalizador_Porcentagem,1,0)),\"\")","v":1},300,{"$f":"IFERROR(IF(ControladorDeProjetos[[#This Row],[Duração Real (em dias)]]=0,\"\",IF(ABS((ControladorDeProjetos[[#This Row],[Duração Real (em dias)]]-ControladorDeProjetos[[#This Row],[Duração Estimada (em dias)]])/ControladorDeProjetos[[#This Row],[Duração Estimada (em dias)]])>Sinalizador_Porcentagem,1,0)),\"\")","v":0},{"$f":"IF(COUNTA('Controlador de projetos'!$I5,'Controlador de projetos'!$J5)<>2,\"\",DAYS360('Controlador de projetos'!$I5,'Controlador de projetos'!$J5,FALSE))","v":66}]
[null,"Projeto 2","Categoria 2","Funcionário 4",{"$f":"TODAY()-41","v":"2023-03-11"},{"$f":"TODAY()-10","v":"2023-04-11"},400,{"$f":"IF(COUNTA('Controlador de projetos'!$E6,'Controlador de projetos'!$F6)<>2,\"\",DAYS360('Controlador de projetos'!$E6,'Controlador de projetos'!$F6,FALSE))","v":30},{"$f":"TODAY()-41","v":"2023-03-11"},{"$f":"TODAY()-7","v":"2023-04-14"},{"$f":"IFERROR(IF(ControladorDeProjetos[[#This Row],[Trabalho Real (em horas)]]=0,\"\",IF(ABS((ControladorDeProjetos[[#This Row],[Trabalho Real (em horas)]]-ControladorDeProjetos[[#This Row],[Trabalho Estimado (em horas)]])/ControladorDeProjetos[[#This Row],[Trabalho Estimado (em horas)]])>Sinalizador_Porcentagem,1,0)),\"\")","v":0},390,{"$f":"IFERROR(IF(ControladorDeProjetos[[#This Row],[Duração Real (em dias)]]=0,\"\",IF(ABS((ControladorDeProjetos[[#This Row],[Duração Real (em dias)]]-ControladorDeProjetos[[#This Row],[Duração Estimada (em dias)]])/ControladorDeProjetos[[#This Row],[Duração Estimada (em dias)]])>Sinalizador_Porcentagem,1,0)),\"\")","v":0},{"$f":"IF(COUNTA('Controlador de projetos'!$I6,'Controlador de projetos'!$J6)<>2,\"\",DAYS360('Controlador de projetos'!$I6,'Controlador de projetos'!$J6,FALSE))","v":33}]
[null,"Projeto 3","Categoria 1","Funcionário 2",{"$f":"TODAY()-100","v":"2023-01-11"},{"$f":"TODAY()-40","v":"2023-03-12"},500,{"$f":"IF(COUNTA('Controlador de projetos'!$E7,'Controlador de projetos'!$F7)<>2,\"\",DAYS360('Controlador de projetos'!$E7,'Controlador de projetos'!$F7,FALSE))","v":61},{"$f":"TODAY()-100","v":"2023-01-11"},{"$f":"TODAY()-27","v":"2023-03-25"},{"$f":"IFERROR(IF(ControladorDeProjetos[[#This Row],[Trabalho Real (em horas)]]=0,\"\",IF(ABS((ControladorDeProjetos[[#This Row],[Trabalho Real (em horas)]]-ControladorDeProjetos[[#This Row],[Trabalho Estimado (em horas)]])/ControladorDeProjetos[[#This Row],[Trabalho Estimado (em horas)]])>Sinalizador_Porcentagem,1,0)),\"\")","v":0},500,{"$f":"IFERROR(IF(ControladorDeProjetos[[#This Row],[Duração Real (em dias)]]=0,\"\",IF(ABS((ControladorDeProjetos[[#This Row],[Duração Real (em dias)]]-ControladorDeProjetos[[#This Row],[Duração Estimada (em dias)]])/ControladorDeProjetos[[#This Row],[Duração Estimada (em dias)]])>Sinalizador_Porcentagem,1,0)),\"\")","v":0},{"$f":"IF(COUNTA('Controlador de projetos'!$I7,'Controlador de projetos'!$J7)<>2,\"\",DAYS360('Controlador de projetos'!$I7,'Controlador de projetos'!$J7,FALSE))","v":74}]
[null,"Projeto 4","Categoria 2","Funcionário 3",{"$f":"TODAY()-90","v":"2023-01-21"},{"$f":"TODAY()-80","v":"2023-01-31"},250,{"$f":"IF(COUNTA('Controlador de projetos'!$E8,'Controlador de projetos'!$F8)<>2,\"\",DAYS360('Controlador de projetos'!$E8,'Controlador de projetos'!$F8,FALSE))","v":10},{"$f":"TODAY()-90","v":"2023-01-21"},{"$f":"TODAY()-71","v":"2023-02-09"},{"$f":"IFERROR(IF(ControladorDeProjetos[[#This Row],[Trabalho Real (em horas)]]=0,\"\",IF(ABS((ControladorDeProjetos[[#This Row],[Trabalho Real (em horas)]]-ControladorDeProjetos[[#This Row],[Trabalho Estimado (em horas)]])/ControladorDeProjetos[[#This Row],[Trabalho Estimado (em horas)]])>Sinalizador_Porcentagem,1,0)),\"\")","v":0},276,{"$f":"IFERROR(IF(ControladorDeProjetos[[#This Row],[Duração Real (em dias)]]=0,\"\",IF(ABS((ControladorDeProjetos[[#This Row],[Duração Real (em dias)]]-ControladorDeProjetos[[#This Row],[Duração Estimada (em dias)]])/ControladorDeProjetos[[#This Row],[Duração Estimada (em dias)]])>Sinalizador_Porcentagem,1,0)),\"\")","v":1},{"$f":"IF(COUNTA('Controlador de projetos'!$I8,'Controlador de projetos'!$J8)<>2,\"\",DAYS360('Controlador de projetos'!$I8,'Controlador de projetos'!$J8,FALSE))","v":18}]
[null,"Projeto 5","Categoria 3","Funcionário 2",{"$f":"TODAY()-90","v":"2023-01-21"},{"$f":"TODAY()-50","v":"2023-03-02"},300,{"$f":"IF(COUNTA('Controlador de projetos'!$E9,'Controlador de projetos'!$F9)<>2,\"\",DAYS360('Controlador de projetos'!$E9,'Controlador de projetos'!$F9,FALSE))","v":41},{"$f":"TODAY()-90","v":"2023-01-21"},{"$f":"TODAY()-44","v":"2023-03-08"},{"$f":"IFERROR(IF(ControladorDeProjetos[[#This Row],[Trabalho Real (em horas)]]=0,\"\",IF(ABS((ControladorDeProjetos[[#This Row],[Trabalho Real (em horas)]]-ControladorDeProjetos[[#This Row],[Trabalho Estimado (em horas)]])/ControladorDeProjetos[[#This Row],[Trabalho Estimado (em horas)]])>Sinalizador_Porcentagem,1,0)),\"\")","v":0},310,{"$f":"IFERROR(IF(ControladorDeProjetos[[#This Row],[Duração Real (em dias)]]=0,\"\",IF(ABS((ControladorDeProjetos[[#This Row],[Duração Real (em dias)]]-ControladorDeProjetos[[#This Row],[Duração Estimada (em dias)]])/ControladorDeProjetos[[#This Row],[Duração Estimada (em dias)]])>Sinalizador_Porcentagem,1,0)),\"\")","v":0},{"$f":"IF(COUNTA('Controlador de projetos'!$I9,'Controlador de projetos'!$J9)<>2,\"\",DAYS360('Controlador de projetos'!$I9,'Controlador de projetos'!$J9,FALSE))","v":47}]
[null,"Projeto 6","Categoria 4","Funcionário 4",{"$f":"TODAY()-60","v":"2023-02-20"},{"$f":"TODAY()-50","v":"2023-03-02"},500,{"$f":"IF(COUNTA('Controlador de projetos'!$E10,'Controlador de projetos'!$F10)<>2,\"\",DAYS360('Controlador de projetos'!$E10,'Controlador de projetos'!$F10,FALSE))","v":12},{"$f":"TODAY()-60","v":"2023-02-20"},{"$f":"TODAY()-45","v":"2023-03-07"},{"$f":"IFERROR(IF(ControladorDeProjetos[[#This Row],[Trabalho Real (em horas)]]=0,\"\",IF(ABS((ControladorDeProjetos[[#This Row],[Trabalho Real (em horas)]]-ControladorDeProjetos[[#This Row],[Trabalho Estimado (em horas)]])/ControladorDeProjetos[[#This Row],[Trabalho Estimado (em horas)]])>Sinalizador_Porcentagem,1,0)),\"\")","v":0},510,{"$f":"IFERROR(IF(ControladorDeProjetos[[#This Row],[Duração Real (em dias)]]=0,\"\",IF(ABS((ControladorDeProjetos[[#This Row],[Duração Real (em dias)]]-ControladorDeProjetos[[#This Row],[Duração Estimada (em dias)]])/ControladorDeProjetos[[#This Row],[Duração Estimada (em dias)]])>Sinalizador_Porcentagem,1,0)),\"\")","v":1},{"$f":"IF(COUNTA('Controlador de projetos'!$I10,'Controlador de projetos'!$J10)<>2,\"\",DAYS360('Controlador de projetos'!$I10,'Controlador de projetos'!$J10,FALSE))","v":17}]
[null,"Projeto 7","Categoria 5","Funcionário 1",{"$f":"TODAY()-44","v":"2023-03-08"},{"$f":"TODAY()-20","v":"2023-04-01"},750,{"$f":"IF(COUNTA('Controlador de projetos'!$E11,'Controlador de projetos'!$F11)<>2,\"\",DAYS360('Controlador de projetos'!$E11,'Controlador de projetos'!$F11,FALSE))","v":23},{"$f":"TODAY()-44","v":"2023-03-08"},{"$f":"TODAY()-15","v":"2023-04-06"},{"$f":"IFERROR(IF(ControladorDeProjetos[[#This Row],[Trabalho Real (em horas)]]=0,\"\",IF(ABS((ControladorDeProjetos[[#This Row],[Trabalho Real (em horas)]]-ControladorDeProjetos[[#This Row],[Trabalho Estimado (em horas)]])/ControladorDeProjetos[[#This Row],[Trabalho Estimado (em horas)]])>Sinalizador_Porcentagem,1,0)),\"\")","v":0},790,{"$f":"IFERROR(IF(ControladorDeProjetos[[#This Row],[Duração Real (em dias)]]=0,\"\",IF(ABS((ControladorDeProjetos[[#This Row],[Duração Real (em dias)]]-ControladorDeProjetos[[#This Row],[Duração Estimada (em dias)]])/ControladorDeProjetos[[#This Row],[Duração Estimada (em dias)]])>Sinalizador_Porcentagem,1,0)),\"\")","v":0},{"$f":"IF(COUNTA('Controlador de projetos'!$I11,'Controlador de projetos'!$J11)<>2,\"\",DAYS360('Controlador de projetos'!$I11,'Controlador de projetos'!$J11,FALSE))","v":28}]
[null,"Projeto 8","Categoria 2","Funcionário 1",{"$f":"TODAY()-39","v":"2023-03-13"},{"$f":"TODAY()","v":"2023-04-21"},450,{"$f":"IF(COUNTA('Controlador de projetos'!$E12,'Controlador de projetos'!$F12)<>2,\"\",DAYS360('Controlador de projetos'!$E12,'Controlador de projetos'!$F12,FALSE))","v":38},{"$f":"TODAY()-45","v":"2023-03-07"},{"$f":"TODAY()-5","v":"2023-04-16"},{"$f":"IFERROR(IF(ControladorDeProjetos[[#This Row],[Trabalho Real (em horas)]]=0,\"\",IF(ABS((ControladorDeProjetos[[#This Row],[Trabalho Real (em horas)]]-ControladorDeProjetos[[#This Row],[Trabalho Estimado (em horas)]])/ControladorDeProjetos[[#This Row],[Trabalho Estimado (em horas)]])>Sinalizador_Porcentagem,1,0)),\"\")","v":0},430,{"$f":"IFERROR(IF(ControladorDeProjetos[[#This Row],[Duração Real (em dias)]]=0,\"\",IF(ABS((ControladorDeProjetos[[#This Row],[Duração Real (em dias)]]-ControladorDeProjetos[[#This Row],[Duração Estimada (em dias)]])/ControladorDeProjetos[[#This Row],[Duração Estimada (em dias)]])>Sinalizador_Porcentagem,1,0)),\"\")","v":0},{"$f":"IF(COUNTA('Controlador de projetos'!$I12,'Controlador de projetos'!$J12)<>2,\"\",DAYS360('Controlador de projetos'!$I12,'Controlador de projetos'!$J12,FALSE))","v":39}]
[null,"projeto 9","Categoria 4","Funcionário 1","2016-02-05","2016-06-09",250,{"$f":"IF(COUNTA('Controlador de projetos'!$E13,'Controlador de projetos'!$F13)<>2,\"\",DAYS360('Controlador de projetos'!$E13,'Controlador de projetos'!$F13,FALSE))","v":124},"2016-03-05","2016-05-05",{"$f":"IFERROR(IF(ControladorDeProjetos[[#This Row],[Trabalho Real (em horas)]]=0,\"\",IF(ABS((ControladorDeProjetos[[#This Row],[Trabalho Real (em horas)]]-ControladorDeProjetos[[#This Row],[Trabalho Estimado (em horas)]])/ControladorDeProjetos[[#This Row],[Trabalho Estimado (em horas)]])>Sinalizador_Porcentagem,1,0)),\"\")","v":0},200,{"$f":"IFERROR(IF(ControladorDeProjetos[[#This Row],[Duração Real (em dias)]]=0,\"\",IF(ABS((ControladorDeProjetos[[#This Row],[Duração Real (em dias)]]-ControladorDeProjetos[[#This Row],[Duração Estimada (em dias)]])/ControladorDeProjetos[[#This Row],[Duração Estimada (em dias)]])>Sinalizador_Porcentagem,1,0)),\"\")","v":1},{"$f":"IF(COUNTA('Controlador de projetos'!$I13,'Controlador de projetos'!$J13)<>2,\"\",DAYS360('Controlador de projetos'!$I13,'Controlador de projetos'!$J13,FALSE))","v":60}]

{"sheet":"Configuração","index":1,"n_rows":10,"n_cols":3,"rows_kept":10}
[null,"Configuração"]
[]
[]
[null,"Nome da Categoria","Nome do Funcionário"]
[null,"Categoria 1","Funcionário 1"]
[null,"Categoria 2","Funcionário 2"]
[null,"Categoria 3","Funcionário 3"]
[null,"Categoria 4","Funcionário 4"]
[null,"Categoria 5","Funcionário 5"]
[null,"Categoria 6","Funcionário 6"]